fUSD/lending_fUSD_20250407
["ID","MTS","AMOUNT","RATE_DAILY","PERIOD"]
[357341818,1744008699530,-1824.04,0.00165,60]
[357341819,1744008699540,-722.01,0.00165066,120]
[357341820,1744008699550,-722.01,0.00166436,120]
[357341821,1744008699560,-722.01,0.00167806,120]
[357341822,1744008699570,-722.01,0.00169175,120]
[357341823,1744008699579,-722.01,0.00170545,120]
[357341824,1744008699589,-722.01,0.00171915,120]
[357341825,1744008699599,-500.0,0.00172122,120]
[357341826,1744008699609,-722.01,0.00173285,120]
[357341827,1744008699618,-4773.0,0.001744,120]
[357341828,1744008699628,-722.01,0.00174655,120]
[357341829,1744008699638,-316.42896347,0.00174712,90]
[357341830,1744008699648,-1000.0,0.00174712,120]
[357341831,1744008699658,-1000.0,0.00174712,120]
[357341832,1744008699667,-1000.0,0.00174712,120]
[357341833,1744008699677,-25260.13338289,0.00174713,15]
[357341834,1744008699686,-4301.86758861,0.00175315,15]
[357341835,1744008699695,-722.01,0.00176025,120]
[357341836,1744008699705,-722.01,0.00177395,120]
[357341837,1744008699714,-722.01,0.00178764,120]
[357341838,1744008699723,-151.0,0.00178849,120]
[357341839,1744008699733,-722.01,0.00180134,120]
[357341840,1744008699743,-722.04579391,0.00181504,120]
[357341841,1744008699755,-1824.04,0.0019,60]
[357341842,1744008699765,-1000.0,0.00190515,120]
[357341843,1744008699775,-500.0,0.00190515,120]
[357341844,1744008699784,-500.0,0.00190515,120]
[357341845,1744008699794,-559.79,0.00190515,120]
[357341846,1744008699806,-521.62,0.00190515,120]
[357341847,1744008699816,-549.44,0.00190515,120]
[357341848,1744008699826,-618.29,0.00190515,120]
[357341849,1744008699836,-562.96,0.00190515,120]
[357341850,1744008699845,-505.89,0.00190515,120]
[357341851,1744008699855,-1000.0,0.00190515,120]
[357341852,1744008699864,-500.0,0.00190515,120]
[357341853,1744008699873,-1000.0,0.00190515,120]
[357341854,1744008699882,-1000.0,0.00190515,120]
[357341855,1744008699891,-715.44,0.00190515,120]
[357341856,1744008699901,-500.0,0.00190515,120]
[357341857,1744008699910,-500.0,0.00190515,120]
[357341858,1744008699920,-515.25,0.00190515,120]
[357341859,1744008699929,-500.0,0.00190515,120]
[357341860,1744008699939,-500.0,0.00190515,120]
[357341861,1744008699948,-500.0,0.00190515,120]
[357341862,1744008699958,-500.0,0.00190516,120]
[357341863,1744008699967,-500.0,0.00190516,120]
[357341864,1744008699976,-529.47,0.00190516,120]
[357341865,1744008699986,-500.0,0.00190516,120]
[357341866,1744008699995,-500.0,0.00190516,120]
[357341867,1744008700008,-500.0,0.00190516,120]
[357341868,1744008700018,-500.0,0.00190516,120]
[357341869,1744008700027,-500.0,0.00190516,120]
[357341870,1744008700037,-500.0,0.00190516,120]
[357341871,1744008700047,-500.0,0.00190516,120]
[357341872,1744008700056,-500.0,0.00190516,120]
[357341873,1744008700066,-790.21,0.00190516,120]
[357341874,1744008700077,-81430.25,0.00190516,7]
[357341875,1744008700088,-500.0,0.00190516,120]
[357341876,1744008700099,-500.0,0.00190516,100]
[357341877,1744008700108,-500.0,0.00190516,120]
[357341878,1744008700118,-500.0,0.00190516,120]
[357341879,1744008700129,-1000.85,0.00190516,120]
[357341880,1744008700139,-500.0,0.00190516,120]
[357341881,1744008700149,-2670.11,0.00190516,120]
[357341882,1744008700159,-500.0,0.00190516,120]
[357341883,1744008700170,-567.96,0.00190516,120]
[357341884,1744008700180,-500.0,0.00190516,120]
[357341885,1744008700189,-500.0,0.00190516,120]
[357341886,1744008700199,-500.0,0.00190516,120]
[357341887,1744008700209,-575.23,0.00190516,120]
[357341888,1744008700218,-500.0,0.00190516,120]
[357341889,1744008700228,-500.0,0.00190516,120]
[357341890,1744008700238,-500.0,0.00190516,120]
[357341891,1744008700248,-500.0,0.00190516,120]
[357341892,1744008700262,-500.0,0.00190516,120]
[357341893,1744008700272,-500.0,0.00190516,120]
[357341894,1744008700282,-1000.0,0.00190516,120]
[357341895,1744008700291,-537.59,0.00190516,120]
[357341896,1744008700301,-533.48,0.0019082,120]
[357341897,1744008700310,-500.0,0.0019082,120]
[357341898,1744008700320,-500.0,0.0019082,120]
[357341899,1744008700329,-254.87,0.0019082,7]
[357341900,1744008700339,-184.69100422,0.0019082,120]
[357341901,1744008700350,-1000.0,0.0019082,120]
[357341902,1744008700359,-500.0,0.0019082,120]
[357341903,1744008700369,-500.0,0.0019082,5]
[357341904,1744008700379,-500.0,0.0019082,120]
[357341905,1744008700389,-4301.86758861,0.00191852,15]
[357341906,1744008700398,-1000.0,0.00191951,120]
[357341907,1744008700407,-1000.0,0.00191951,120]
[357341908,1744008700417,-1000.0,0.00191951,120]
[357341909,1744008700427,-1000.0,0.00191951,120]
[357341910,1744008700437,-500.0,0.00191952,120]
[357341911,1744008700447,-432.31,0.00191952,120]
[357341912,1744008700457,-500.0,0.00191952,120]
[357341913,1744008700467,-500.0,0.00191952,120]
[357341914,1744008700477,-500.0,0.00191952,120]
[357341915,1744008700487,-500.0,0.00191952,120]
[357341916,1744008700497,-500.0,0.00191952,120]
[357341917,1744008700510,-500.0,0.00191952,120]
[357341918,1744008700519,-500.0,0.00191952,120]
[357341919,1744008700529,-500.0,0.00191952,120]
[357341920,1744008700539,-500.0,0.00191952,120]
[357341921,1744008700549,-500.0,0.00191952,120]
[357341922,1744008700559,-169.99692356,0.00191952,120]
[357341923,1744008700568,-529.47,0.00191952,120]
[357341924,1744008700577,-573.52,0.00191952,120]
[357341925,1744008700585,-396.84,0.00191952,120]
[357341926,1744008700596,-500.0,0.00191952,120]
[357341927,1744008700606,-318.24919566,0.00191952,120]
[357341928,1744008700616,-500.0,0.00191952,120]
[357341929,1744008700626,-500.0,0.00191952,120]
[357341930,1744008700636,-500.0,0.00191952,120]
[357341931,1744008700646,-500.0,0.00191952,120]
[357341932,1744008700656,-565.2,0.00191952,120]
[357341933,1744008700666,-500.0,0.00191952,120]
[357341934,1744008700676,-81430.25,0.00191952,7]
[357341935,1744008700685,-640.25,0.00191952,120]
[357341936,1744008700694,-500.0,0.00191952,120]
[357341937,1744008700704,-500.0,0.00191952,120]
[357341938,1744008700714,-500.0,0.00191952,120]
[357341939,1744008700724,-500.0,0.00191952,120]
[357341940,1744008700734,-500.0,0.00191952,120]
[357341941,1744008700742,-500.0,0.00191952,120]
[357341942,1744008700756,-500.0,0.00191952,120]
[357341943,1744008700766,-2670.11,0.00191952,120]
[357341944,1744008700775,-500.0,0.00191952,120]
[357341945,1744008700785,-500.0,0.00191952,120]
[357341946,1744008700795,-592.49,0.00191952,120]
[357341947,1744008700805,-500.0,0.00191952,120]
[357341948,1744008700814,-561.17269948,0.00191952,120]
[357341949,1744008700823,-6068.57,0.00191952,120]
[357341950,1744008700832,-500.0,0.00191952,120]
[357341951,1744008700841,-500.0,0.00191952,120]
[357341952,1744008700851,-659.21,0.00191952,120]
[357341953,1744008700860,-500.0,0.00191952,120]
[357341954,1744008700870,-500.0,0.00191952,120]
[357341955,1744008700880,-567.64,0.00191953,120]
[357341956,1744008700889,-567.64,0.00191953,120]
[357341957,1744008700899,-567.64,0.00191953,120]
[357341958,1744008700909,-567.64,0.00191953,120]
[357341959,1744008700918,-567.67428505,0.00191953,120]
[357341960,1744008700926,-517.21,0.00191953,120]
[357341961,1744008700935,-517.21,0.00191953,120]
[357341962,1744008700944,-517.21,0.00191953,120]
[357341963,1744008700954,-517.21,0.00191953,120]
[357341964,1744008700963,-517.34139641,0.00191953,120]
[357341965,1744008700972,-501.92,0.00191953,120]
[357341966,1744008700981,-501.92,0.00191953,120]
[357341967,1744008700990,-501.92,0.00191953,120]
[357341968,1744008700999,-501.92,0.00191953,120]
[357341969,1744008701012,-502.05669872,0.00191953,120]
[357341970,1744008701021,-500.0,0.00197889,120]
[357341971,1744008701031,-500.0,0.00197889,120]
[357341972,1744008701040,-500.0,0.00197889,120]
[357341973,1744008701049,-500.0,0.00197889,120]
[357341974,1744008701059,-500.0,0.00197889,120]
[357341975,1744008701069,-500.0,0.00197889,120]
[357341976,1744008701082,-500.0,0.00197889,120]
[357341977,1744008701092,-500.0,0.00197889,120]
[357341978,1744008701101,-500.0,0.00197889,120]
[357341979,1744008701111,-500.0,0.00197889,120]
[357341980,1744008701121,-573.52,0.00197889,120]
[357341981,1744008701131,-395.61282038,0.00197889,120]
[357341982,1744008701140,-586.4,0.00197889,120]
[357341983,1744008701151,-500.0,0.00197889,120]
[357341984,1744008701163,-500.0,0.00197889,120]
[357341985,1744008701173,-565.2,0.00197889,120]
[357341986,1744008701183,-354.73,0.00197889,120]
[357341987,1744008701192,-640.25,0.00197889,120]
[357341988,1744008701202,-500.0,0.00197889,120]
[357341989,1744008701212,-500.0,0.00197889,120]
[357341990,1744008701222,-500.0,0.00197889,120]
[357341991,1744008701232,-472.27975878,0.00197889,120]
[357341992,1744008701241,-500.0,0.00197889,120]
[357341993,1744008701252,-592.49,0.00197889,120]
[357341994,1744008701267,-500.0,0.00197889,120]
[357341995,1744008701276,-6068.57,0.00197889,120]
[357341996,1744008701285,-500.0,0.00197889,120]
[357341997,1744008701295,-500.0,0.00197889,120]
[357341998,1744008701305,-659.21,0.00197889,120]
[357341999,1744008701315,-500.0,0.00197889,120]
[357342000,1744008701324,-500.0,0.00197891,120]
[357342001,1744008701334,-500.0,0.00197891,120]
[357342002,1744008701343,-500.0,0.00197891,120]
[357342003,1744008701353,-500.0,0.00197891,120]
[357342004,1744008701363,-340.64901729,0.00197891,120]
[357342005,1744008701372,-500.0,0.00197891,120]
[357342006,1744008701381,-500.0,0.00197891,120]
[357342007,1744008701600,-500.0,0.00197891,120]
[357342008,1744008701612,-627.68,0.00197891,120]
[357342009,1744008701623,-500.0,0.00197891,120]
[357342010,1744008701634,-500.0,0.00197891,120]
[357342011,1744008701645,-500.0,0.00197891,120]
[357342012,1744008701655,-413.99088285,0.00197891,120]
[357342013,1744008701665,-500.0,0.00197891,120]
[357342014,1744008701675,-500.0,0.00197891,120]
[357342015,1744008701685,-500.0,0.00197891,120]
[357342016,1744008701696,-500.0,0.00197891,120]
[357342017,1744008701705,-500.0,0.00197891,120]
[357342018,1744008701715,-500.0,0.00197891,120]
[357342019,1744008701725,-436.29406891,0.00197891,120]
[357342020,1744008701736,-590.4,0.00197891,120]
[357342021,1744008701746,-590.4,0.00197891,120]
[357342022,1744008701761,-500.0,0.00197891,120]
[357342023,1744008701772,-500.0,0.00197891,120]
[357342024,1744008701783,-500.0,0.00197891,120]
[357342025,1744008701793,-500.0,0.00197891,120]
[357342026,1744008701803,-168.8915391,0.00197891,120]
[357342027,1744008701813,-500.0,0.00197891,120]
[357342028,1744008701823,-500.0,0.00197891,120]
[357342029,1744008701833,-300.0,0.00197891,120]
[357342030,1744008701843,-300.0,0.00197891,120]
[357342031,1744008701854,-500.0,0.00197891,120]
[357342032,1744008701864,-500.0,0.00197891,120]
[357342033,1744008701875,-506.92,0.00197891,120]
[357342034,1744008701885,-506.92,0.00197891,120]
[357342035,1744008701896,-525.95714446,0.00197891,120]
[357342036,1744008701907,-500.0,0.00197891,120]
[357342037,1744008701917,-500.0,0.00197891,120]
[357342038,1744008701928,-350.34487014,0.00197891,120]
[357342039,1744008701938,-500.0,0.00197891,120]
[357342040,1744008701948,-150.94215953,0.00197891,120]
[357342041,1744008701959,-628.09414804,0.00197891,120]
[357342042,1744008701968,-500.0,0.00197891,120]
[357342043,1744008701978,-500.0,0.00197891,120]
[357342044,1744008701988,-500.0,0.00199996,120]
[357342045,1744008701998,-500.0,0.00199996,120]
[357342046,1744008702014,-559.79,0.00199996,120]
[357342047,1744008702024,-521.62,0.00199996,120]
[357342048,1744008702034,-549.44,0.00199996,120]
[357342049,1744008702044,-618.29,0.00199996,120]
[357342050,1744008702053,-562.96,0.00199996,120]
[357342051,1744008702063,-505.89,0.00199996,120]
[357342052,1744008702074,-500.0,0.00199996,120]
[357342053,1744008702083,-715.44,0.00199996,120]
[357342054,1744008702097,-500.0,0.00199996,120]
[357342055,1744008702106,-500.0,0.00199996,120]
[357342056,1744008702117,-515.25,0.00199996,120]
[357342057,1744008702127,-500.0,0.00199996,120]
[357342058,1744008702136,-500.0,0.00199996,120]
[357342059,1744008702146,-500.0,0.00199996,120]
[357342060,1744008702156,-500.0,0.00199998,5]
[357342061,1744008702166,-500.0,0.00199999,120]
[357342062,1744008702177,-161.50403339,0.00199999,120]
[357342063,1744008702186,-500.0,0.00199999,120]
[357342064,1744008702196,-500.0,0.00199999,120]
[357342065,1744008702205,-500.0,0.00199999,120]
[357342066,1744008702215,-500.0,0.00199999,120]
[357342067,1744008702225,-500.0,0.00199999,120]
[357342068,1744008702236,-500.0,0.00199999,120]
[357342069,1744008702245,-500.0,0.00199999,120]
[357342070,1744008702258,-500.0,0.00199999,120]
[357342071,1744008702269,-500.0,0.00199999,120]
[357342072,1744008702280,-500.0,0.00199999,120]
[357342073,1744008702289,-500.0,0.00199999,120]
[357342074,1744008702300,-500.0,0.00199999,120]
[357342075,1744008702311,-590.4,0.00199999,120]
[357342076,1744008702321,-590.4,0.00199999,120]
[357342077,1744008702332,-500.0,0.00199999,120]
[357342078,1744008702342,-500.0,0.00199999,120]
[357342079,1744008702352,-367.55289489,0.00199999,120]
[357342080,1744008702363,-500.0,0.00199999,120]
[357342081,1744008702373,-415.21683154,0.00199999,120]
[357342082,1744008702384,-300.0,0.00199999,120]
[357342083,1744008702394,-300.0,0.00199999,120]
[357342084,1744008702404,-500.0,0.00199999,120]
[357342085,1744008702415,-616.74585442,0.00199999,120]
[357342086,1744008702425,-506.92,0.00199999,120]
[357342087,1744008702436,-506.92,0.00199999,120]
[357342088,1744008702446,-500.0,0.00199999,120]
[357342089,1744008702456,-500.0,0.00199999,120]
[357342090,1744008702467,-500.0,0.00199999,120]
[357342091,1744008702478,-500.0,0.00199999,120]
[357342092,1744008702488,-150.0,0.002,120]
[357342093,1744008702498,-150.0,0.002,120]
[357342094,1744008702512,-533.48,0.0020242,120]
[357342095,1744008702523,-500.0,0.0020242,120]
[357342096,1744008702533,-500.0,0.0020242,120]
[357342097,1744008702543,-254.87,0.0020242,7]
[357342098,1744008702552,-318.9937663,0.0020242,120]
[357342099,1744008702563,-500.0,0.0020242,5]
[357342100,1744008702572,-500.0,0.0020242,120]
[357342101,1744008702583,-168.94282914,0.00202432,5]
[357342102,1744008702593,-151.0,0.00205616,120]
[357342103,1744008702604,-1000.0,0.00209899,120]
[357342104,1744008702614,-1000.0,0.00209899,120]
[357342105,1744008702624,-1000.0,0.00209899,120]
[357342106,1744008702635,-1000.0,0.00209899,120]
[357342107,1744008702646,-2056.69,0.002099,87]
[357342108,1744008702657,-2056.69,0.002099,87]
[357342109,1744008702667,-2056.69,0.002099,87]
[357342110,1744008702678,-2056.69,0.002099,87]
[357342111,1744008702690,-2056.69,0.002099,87]
[357342112,1744008702701,-2056.69,0.002099,87]
[357342113,1744008702712,-2056.69,0.002099,87]
[357342114,1744008702723,-2056.69,0.002099,87]
[357342115,1744008702733,-2056.69,0.002099,87]
[357342116,1744008702744,-2056.69,0.002099,87]
[357342117,1744008702755,-2056.69,0.002099,87]
[357342118,1744008702772,-2056.69,0.002099,87]
[357342119,1744008702783,-2056.69,0.002099,87]
[357342120,1744008702794,-2056.69,0.002099,87]
[357342121,1744008702804,-2056.69,0.002099,87]
[357342122,1744008702815,-2056.69,0.002099,87]
[357342123,1744008702824,-2056.69,0.002099,87]
[357342124,1744008702834,-2056.69,0.002099,87]
[357342125,1744008702844,-2056.69,0.002099,87]
[357342126,1744008702854,-2056.69,0.002099,87]
[357342127,1744008702864,-2056.69,0.002099,87]
[357342128,1744008702873,-2056.69,0.002099,87]
[357342129,1744008702883,-2056.69,0.002099,87]
[357342130,1744008702894,-2056.69,0.002099,87]
[357342131,1744008702904,-1000.0,0.00211063,120]
[357342132,1744008702915,-1000.0,0.00211063,120]
[357342133,1744008702928,-1000.0,0.00211063,120]
[357342134,1744008702938,-25260.13338289,0.00211064,15]
[357342135,1744008702948,-151.0,0.00226986,120]
[357342136,1744008702958,-316.404,0.00228055,2]
[357342137,1744008702968,-852.0,0.00228055,120]
[357342138,1744008702979,-151.0,0.00228055,120]
[357342139,1744008702990,-150.0,0.00228055,120]
[357342140,1744008703000,-315.12731603,0.00229999,120]
[357342141,1744008703014,-492.53,0.00229999,120]
[357342142,1744008703025,-500.0,0.00229999,120]
[357342143,1744008703035,-390.87,0.00229999,120]
[357342144,1744008703046,-500.0,0.00229999,120]
[357342145,1744008703057,-363.24381811,0.00229999,120]
[357342146,1744008703068,-590.4,0.00229999,120]
[357342147,1744008703084,-500.0,0.00229999,120]
[357342148,1744008703095,-300.0,0.00229999,120]
[357342149,1744008703105,-506.92,0.00229999,120]
[357342150,1744008703116,-640.84683021,0.00229999,120]
[357342151,1744008703127,-500.0,0.00229999,120]
[357342152,1744008703138,-272.321,0.00231055,120]
[357342153,1744008703148,-151.0,0.00231055,120]
[357342154,1744008703158,-151.0,0.00232384,120]
[357342155,1744008703172,-1824.04,0.00233,60]
[357342156,1744008703182,-1000.0,0.00233426,120]
[357342157,1744008703192,-530.89517129,0.00233427,120]
[357342158,1744008703202,-529.47,0.00233427,120]
[357342159,1744008703212,-169.96790375,0.00233427,120]
[357342160,1744008703222,-81430.25,0.00233427,7]
[357342161,1744008703232,-500.0,0.00233427,120]
[357342162,1744008703242,-500.0,0.00233427,120]
[357342163,1744008703253,-554.2,0.00233427,120]
[357342164,1744008703268,-2670.11,0.00233427,120]
[357342165,1744008703278,-500.0,0.00233427,120]
[357342166,1744008703288,-500.0,0.00233427,120]
[357342167,1744008703298,-151.0,0.00234055,120]
[357342168,1744008703308,-151.0,0.00237055,120]
[357342169,1744008703319,-4773.0,0.002376,120]
[357342170,1744008703330,-151.0,0.00240055,120]
[357342171,1744008703342,-151.0,0.00243055,120]
[357342172,1744008703352,-500.0,0.00244317,120]
[357342173,1744008703364,-25260.13338289,0.00247415,15]
[357342174,1744008703375,-500.0,0.00249999,120]
[357342175,1744008703386,-259.14,0.00249999,120]
[357342176,1744008703396,-315.98421544,0.00249999,120]
[357342177,1744008703407,-590.4,0.00249999,120]
[357342178,1744008703418,-590.4,0.00249999,120]
[357342179,1744008703428,-318.6,0.00249999,120]
[357342180,1744008703440,-300.0,0.00249999,120]
[357342181,1744008703450,-249.44025155,0.00249999,120]
[357342182,1744008703462,-506.92,0.00249999,120]
[357342183,1744008703473,-506.92,0.00249999,120]
[357342184,1744008703482,-500.0,0.00249999,120]
[357342185,1744008703493,-500.0,0.00249999,120]
[357342186,1744008703503,-500.0,0.00251983,120]
[357342187,1744008703517,-151.0,0.00259151,120]
[357342188,1744008703527,-500.0,0.00259418,120]
[357342189,1744008703537,-500.0,0.00273968,120]
[357342190,1744008703548,-500.0,0.00273968,120]
[357342191,1744008703559,-500.0,0.00273968,120]
[357342192,1744008703569,-500.0,0.00273968,120]
[357342193,1744008703579,-500.0,0.00273968,120]
[357342194,1744008703589,-500.0,0.00273968,120]
[357342195,1744008703600,-500.0,0.00273968,120]
[357342196,1744008703609,-790.21,0.00273968,120]
[357342197,1744008703620,-500.0,0.00273968,120]
[357342198,1744008703630,-500.0,0.00273968,100]
[357342199,1744008703640,-1000.85,0.00273968,120]
[357342200,1744008703650,-567.96,0.00273968,120]
[357342201,1744008703661,-500.0,0.00273968,120]
[357342202,1744008703672,-565.77944623,0.00273968,120]
[357342203,1744008703683,-500.0,0.00273968,120]
[357342204,1744008703692,-575.23,0.00273968,120]
[357342205,1744008703703,-500.0,0.00273968,120]
[357342206,1744008703713,-500.0,0.00273968,120]
[357342207,1744008703723,-500.0,0.00273968,120]
[357342208,1744008703733,-500.0,0.00273968,120]
[357342209,1744008703743,-500.0,0.00273968,120]
[357342210,1744008703754,-1000.0,0.00273968,120]
[357342211,1744008703767,-537.59,0.00273968,120]
[357342212,1744008703778,-350.0,0.00273972,120]
[357342213,1744008703787,-350.0,0.00273972,120]
[357342214,1744008703797,-350.0,0.00273972,120]
[357342215,1744008703807,-350.0,0.00273972,120]
[357342216,1744008703817,-350.0,0.00273972,120]
[357342217,1744008703827,-350.0,0.00273972,120]
[357342218,1744008703838,-350.0,0.00273972,120]
[357342219,1744008703848,-328.41375406,0.00273972,120]
[357342220,1744008703859,-1500.0,0.002786,120]
[357342221,1744008703870,-200.0,0.0028,120]
[357342222,1744008703880,-1500.0,0.002814,120]
[357342223,1744008703891,-25260.13338289,0.00283766,15]
[357342224,1744008703901,-151.0,0.00285918,120]
[357342225,1744008703912,-1000.0,0.00294108,120]
[357342226,1744008703922,-1000.0,0.00295489,120]
[357342227,1744008703932,-273.33446975,0.00295489,120]
[357342228,1744008703943,-500.0,0.00295489,120]
[357342229,1744008703953,-559.79,0.00295489,120]
[357342230,1744008703964,-521.62,0.00295489,120]
[357342231,1744008703975,-549.44,0.00295489,120]
[357342232,1744008703985,-618.29,0.00295489,120]
[357342233,1744008703995,-562.96,0.00295489,120]
[357342234,1744008704005,-505.89,0.00295489,120]
[357342235,1744008704021,-224.14005961,0.00295489,120]
[357342236,1744008704031,-715.44,0.00295489,120]
[357342237,1744008704042,-500.0,0.00295489,120]
[357342238,1744008704265,-500.0,0.00295489,120]
[357342239,1744008704275,-515.25,0.00295489,120]
[357342240,1744008704285,-622.09,0.00295489,120]
[357342241,1744008704295,-500.0,0.00295489,120]
[357342242,1744008704305,-523.76504797,0.00295489,120]
[357342243,1744008704315,-590.4,0.00295491,120]
[357342244,1744008704325,-506.92,0.00295491,120]
[357342245,1744008704336,-500.0,0.00295491,120]
[357342246,1744008704346,-151.00838194,0.002999,120]
[357342247,1744008704356,-500.0,0.002999,109]
[357342248,1744008704367,-533.48,0.00299985,120]
[357342249,1744008704378,-500.0,0.00299985,120]
[357342250,1744008704388,-500.0,0.00299985,120]
[357342251,1744008704398,-254.87,0.00299985,7]
[357342252,1744008704408,-500.0,0.00299985,5]
[357342253,1744008704419,-500.0,0.00299985,120]
[357342254,1744008704429,-590.4,0.00299987,120]
[357342255,1744008704440,-590.4,0.00299987,120]
[357342256,1744008704450,-590.4,0.00299987,120]
[357342257,1744008704461,-590.4,0.00299987,120]
[357342258,1744008704471,-590.57911434,0.00299987,120]
[357342259,1744008704482,-506.92,0.00299987,120]
[357342260,1744008704493,-506.92,0.00299987,120]
[357342261,1744008704504,-506.92,0.00299987,120]
[357342262,1744008704517,-506.92,0.00299987,120]
[357342263,1744008704527,-507.0240255,0.00299987,120]
[357342264,1744008704537,-445.22,0.00299987,120]
[357342265,1744008704547,-500.0,0.00299997,120]
[357342266,1744008704557,-500.0,0.00299997,120]
[357342267,1744008704568,-500.0,0.00299997,120]
[357342268,1744008704579,-500.0,0.00299997,120]
[357342269,1744008704589,-500.0,0.00299997,120]
[357342270,1744008704598,-500.0,0.00299997,120]
[357342271,1744008704609,-500.0,0.00299997,120]
[357342272,1744008704619,-500.0,0.00299997,120]
[357342273,1744008704628,-213.33080698,0.00299997,120]
[357342274,1744008704638,-500.0,0.00299997,120]
[357342275,1744008704648,-573.52,0.00299997,120]
[357342276,1744008704659,-500.0,0.00299997,120]
[357342277,1744008704670,-500.0,0.00299997,120]
[357342278,1744008704680,-565.2,0.00299997,120]
[357342279,1744008704690,-640.25,0.00299997,120]
[357342280,1744008704700,-443.73,0.00299997,120]
[357342281,1744008704710,-500.0,0.00299997,120]
[357342282,1744008704720,-500.0,0.00299997,120]
[357342283,1744008704729,-500.0,0.00299997,120]
[357342284,1744008704739,-592.49,0.00299997,120]
[357342285,1744008704748,-500.0,0.00299997,120]
[357342286,1744008704758,-6068.57,0.00299997,120]
[357342287,1744008704772,-500.0,0.00299997,120]
[357342288,1744008704782,-500.0,0.00299997,120]
[357342289,1744008704792,-659.21,0.00299997,120]
[357342290,1744008704802,-500.0,0.00299997,120]
[357342291,1744008704811,-500.0,0.00299998,120]
[357342292,1744008704821,-500.0,0.00299998,120]
[357342293,1744008704832,-500.0,0.00299998,120]
[357342294,1744008704842,-500.0,0.00299998,120]
[357342295,1744008704852,-500.0,0.00299998,120]
[357342296,1744008704861,-500.0,0.00299998,120]
[357342297,1744008704872,-1000.0,0.00299998,120]
[357342298,1744008704882,-1000.0,0.00299998,120]
[357342299,1744008704892,-369.91704138,0.00299998,120]
[357342300,1744008704902,-790.21,0.00299998,120]
[357342301,1744008704912,-500.0,0.00299998,120]
[357342302,1744008704922,-500.0,0.00299998,100]
[357342303,1744008704932,-1000.85,0.00299998,120]
[357342304,1744008704943,-567.96,0.00299998,120]
[357342305,1744008704952,-448.02,0.00299998,120]
[357342306,1744008704963,-500.0,0.00299998,120]
[357342307,1744008704972,-575.23,0.00299998,120]
[357342308,1744008704983,-500.0,0.00299998,120]
[357342309,1744008704992,-500.0,0.00299998,120]
[357342310,1744008705002,-500.0,0.00299998,120]
[357342311,1744008705015,-500.0,0.00299998,120]
[357342312,1744008705025,-500.0,0.00299998,120]
[357342313,1744008705037,-1000.0,0.00299998,120]
[357342314,1744008705050,-537.59,0.00299998,120]
[357342315,1744008705060,-500.0,0.00299999,120]
[357342316,1744008705070,-500.0,0.00299999,120]
[357342317,1744008705080,-300.0,0.00299999,120]